bitfinex/quotes_SOLUSD_20241117
["timestamp","ask_amount","ask_price","bid_price","bid_amount"]
[1731819065273,17.93493882,233.75,233.73,250.0]
[1731819065787,17.93493882,233.77,233.73,254.2783]
[1731819066096,17.93493882,233.79,233.74,23.776884]
[1731819066299,17.93493882,233.81,233.74,23.776884]
[1731819066999,1.7104,233.86,233.74,23.776884]
[1731819067000,17.93493882,233.79,233.74,23.776884]
[1731819067293,17.93493882,233.77,233.73,264.9744]
[1731819067990,17.93493882,233.75,233.73,250.0]
[1731819070407,19.64613882,233.75,233.73,250.0]
[1731819080409,58.13469348,233.74,233.73,108.35535741]
[1731819080589,1.7112,233.75,233.73,108.35535741]
[1731819080798,17.93493882,233.74,233.73,108.35535741]
[1731819081099,17.93493882,233.8,233.73,108.35535741]
[1731819081303,30.0942,233.91,233.74,18.02861344]
[1731819081502,17.93493882,233.88,233.78,17.93493882]
[1731819081716,17.93493882,233.88,233.73,123.32975741]
[1731819081717,13.0241,233.92,233.82,0.21916462]
[1731819081910,17.93493882,233.94,233.85,23.902374]
[1731819082204,17.93493882,233.9,233.8,17.93493882]
[1731819082400,17.93493882,233.9,233.81,28.053784]
[1731819082901,17.93493882,233.9,233.82,0.12549]
[1731819083089,17.93493882,233.83,233.74,20.0]
[1731819083288,17.93493882,233.76,233.73,108.35535741]
[1731819084194,17.93493882,233.78,233.73,108.35535741]
[1731819084612,17.93493882,233.8,233.73,112.63375741]
[1731819084914,17.93493882,233.82,233.74,23.902374]
[1731819085678,17.93493882,233.85,233.75,17.93493882]
[1731819086005,1.7105,233.84,233.76,23.776884]
[1731819086209,1.7105,233.84,233.73,123.32985741]
[1731819086210,17.93493882,233.79,233.73,108.35535741]
[1731819087488,17.93493882,233.75,233.73,108.35535741]
[1731819087697,0.21916462,233.74,233.73,108.35535741]
[1731819088006,22.05595462,233.74,233.73,31.10295515]
[1731819088179,22.05595462,233.74,233.73,13.9719108]
[1731819088380,0.34465462,233.69,233.48,11.379]
[1731819088624,17.93493882,233.59,233.49,17.93493882]
[1731819088907,17.93493882,233.63,233.53,17.93493882]
[1731819089609,1.7121,233.62,233.53,17.93493882]
[1731819090013,1.7121,233.62,233.46,33.2592]
[1731819090014,1.7121,233.62,233.55,17.93493882]
[1731819090509,1.7121,233.62,233.46,33.2592]
[1731819090510,1.712,233.64,233.58,17.93493882]
[1731819090711,1.7113,233.73,233.63,17.93493882]
[1731819090899,1.7113,233.73,233.58,23.87055862]
[1731819091099,1.7113,233.73,233.65,17.93493882]
[1731819091813,1.7113,233.73,233.67,17.93493882]
[1731819092013,1.7113,233.73,233.63,4.2801]
[1731819092309,1.7112,233.75,233.69,17.93493882]
[1731819092614,1.7112,233.75,233.64,43.776884]
[1731819092808,17.93493882,233.78,233.64,43.776884]
[1731819092809,28.69629033,233.77,233.67,28.69629033]
[1731819093013,1.7109,233.8,233.73,28.69629033]
[1731819093415,1.7105,233.84,233.75,28.69629033]
[1731819095817,28.69629033,233.79,233.67,0.12549]
[1731819096008,28.69629033,233.75,233.58,13.2714]
[1731819096315,28.69629033,233.73,233.62,28.69629033]
[1731819096929,28.69629033,233.69,233.6,28.69629033]
[1731819097096,28.69629033,233.69,233.58,28.69629033]
[1731819097297,28.69629033,233.75,233.64,28.69629033]
[1731819097820,28.69629033,233.73,233.64,28.69629033]
[1731819098010,28.69629033,233.71,233.6,28.69629033]
[1731819098720,28.69629033,233.71,233.62,28.69629033]
[1731819099015,1.7113,233.74,233.64,28.69629033]
[1731819099323,1.7113,233.74,233.66,28.69629033]
[1731819099711,28.69629033,233.75,233.66,28.69629033]
[1731819100535,30.40739033,233.76,233.66,28.69629033]
[1731819101211,43.16176039,233.92,233.76,0.25098]
[1731819101402,43.16176039,233.92,233.77,6.49926781]
[1731819101403,1.7099,233.92,233.77,6.49926781]
[1731819101610,45.3436,233.98,233.75,43.776884]
[1731819101611,18.7989,233.97,233.88,28.69629033]
[1731819102126,28.69629033,233.93,233.82,28.69629033]
[1731819102318,28.69629033,233.95,233.84,28.69629033]
[1731819102908,28.69629033,233.93,233.76,0.25098]
[1731819103229,1.7099,233.92,233.83,28.69629033]
[1731819103721,1.7099,233.92,233.76,0.25098]
[1731819104025,1.7099,233.92,233.87,28.69629033]
[1731819104609,1.7097,233.95,233.87,28.69629033]
[1731819104814,1.7097,233.95,233.85,28.69629033]
[1731819104815,30.40599033,233.95,233.85,28.69629033]
[1731819105608,28.69629033,233.93,233.83,28.69629033]
[1731819106205,30.40599033,233.95,233.85,28.69629033]
[1731819106406,28.69629033,233.93,233.83,28.69629033]
[1731819106605,1.7099,233.92,233.83,28.69629033]
[1731819107419,28.69629033,233.91,233.81,28.69629033]
[1731819109130,1.7101,233.9,233.81,28.69629033]
[1731819111326,1.7101,233.9,233.83,28.69629033]
[1731819111932,1.7101,233.9,233.85,28.69629033]
[1731819113126,1.7099,233.92,233.85,28.69629033]
[1731819113515,1.7099,233.92,233.77,0.09367462]
[1731819113516,1.7096,233.97,233.88,23.776884]
[1731819113807,0.1,234.07,233.96,23.776884]
[1731819113808,17.084698,234.01,233.96,23.776884]
[1731819114022,1.7088,234.07,234.0,52.47317433]
[1731819114231,1.7088,234.07,233.89,5.81892107]
[1731819114526,28.69629033,234.06,233.96,28.69629033]
[1731819114711,28.69629033,234.06,233.97,23.776884]
[1731819114909,1.7088,234.07,233.98,28.69629033]
[1731819115110,1.7088,234.07,233.97,23.776884]
[1731819115111,1.7088,234.07,234.0,28.69629033]
[1731819115513,29.16209393,234.1,233.97,23.776884]
[1731819115514,0.4658036,234.1,234.05,28.69629033]
[1731819115906,0.4658036,234.1,233.98,0.12549]
[1731819116114,28.69629033,234.08,234.0,28.69629033]
[1731819116527,28.69629033,234.08,233.98,28.69629033]
[1731819116830,30.87069393,234.1,234.0,28.69629033]
[1731819117037,30.87069393,234.1,233.99,23.776884]
[1731819117038,2.1744036,234.1,234.04,28.69629033]
[1731819117338,2.1745036,234.1,234.0,0.12549]
[1731819117629,2.1745036,234.1,234.02,28.69629033]
[1731819118521,0.4658036,234.1,234.05,23.776884]
[1731819119235,0.4658036,234.1,234.06,28.82178033]
[1731819119430,0.4658036,234.1,234.08,28.69629033]
[1731819119744,0.4658036,234.1,234.09,23.776884]
[1731819119912,0.4658036,234.1,234.09,23.902374]
[1731819120235,0.4658036,234.1,234.09,24.12153862]
[1731819120732,46.2262,234.23,234.21,158.3263964]
[1731819120919,13.1804,234.23,234.16,28.69629033]
[1731819121120,28.69629033,234.26,234.18,28.69629033]
[1731819121315,45.76063633,234.29,234.2,28.69629033]
[1731819121627,28.69629033,234.29,234.2,28.69629033]
[1731819121930,30.9292,234.32,234.22,28.69629033]
[1731819121931,17.063309,234.3,234.22,28.69629033]
[1731819122112,30.40339033,234.31,234.23,23.776884]
[1731819122437,30.40339033,234.31,234.15,23.776884]
[1731819122438,1.707,234.33,234.27,23.776884]
[1731819122640,28.69629033,234.32,234.16,24.027864]
[1731819122929,1.707,234.33,234.27,23.776884]
[1731819123313,2.1727036,234.34,234.28,28.69629033]
[1731819123519,28.69629033,234.3,234.16,0.12549]
[1731819123713,28.69629033,234.28,234.16,28.69629033]
[1731819124034,28.69629033,234.28,234.08,28.69629033]
[1731819124035,28.69629033,234.28,234.18,28.69629033]
[1731819124212,28.69629033,234.26,234.07,8.32699128]
[1731819124531,28.69629033,234.2,234.11,28.69629033]
[1731819125128,28.69629033,234.12,234.01,28.69629033]
[1731819125313,28.69629033,234.1,233.99,28.69629033]
[1731819126320,28.69629033,234.12,234.03,28.69629033]
[1731819126638,28.69629033,234.1,233.99,28.69629033]
[1731819127135,28.69629033,234.04,233.88,13.2209]
[1731819127340,28.69629033,234.04,233.95,28.69629033]
[1731819127550,1.7087,234.09,233.99,28.69629033]
[1731819127725,1.7087,234.09,234.01,28.69629033]
[1731819127927,1.7086,234.11,234.03,28.69629033]
[1731819128425,28.69629033,234.16,234.05,28.69629033]
[1731819128741,28.69629033,234.16,234.06,23.776884]
[1731819128932,1.7081,234.17,234.08,23.776884]
[1731819129434,1.7081,234.17,234.06,23.776884]
[1731819129435,1.7081,234.17,234.1,23.776884]
[1731819129827,28.69629033,234.16,234.08,23.776884]
[1731819130028,28.69629033,234.1,233.97,28.69629033]
[1731819130243,28.69629033,234.08,233.97,28.69629033]
[1731819130430,28.69629033,234.08,233.99,28.69629033]
[1731819130745,28.69629033,234.1,233.99,28.69629033]
[1731819131451,1.7087,234.09,233.99,28.69629033]
[1731819131835,28.69629033,234.08,233.99,28.69629033]
[1731819132034,28.69629033,234.08,233.97,28.69629033]
[1731819132228,28.69629033,234.02,233.93,28.69629033]
[1731819132429,28.69629033,234.02,233.8,41.71569033]
[1731819132430,28.69629033,234.0,233.89,28.69629033]
[1731819132850,28.69629033,234.02,233.91,28.69629033]
[1731819133149,28.69629033,234.04,233.95,28.69629033]
[1731819133347,13.8509,234.05,233.97,28.69629033]
[1731819133545,28.69629033,234.08,233.98,23.776884]
[1731819133852,28.69629033,234.04,233.86,0.2]
[1731819134033,28.69629033,234.08,233.98,28.69629033]
[1731819134235,28.69629033,234.06,233.98,28.69629033]
[1731819134431,28.69629033,234.06,233.97,23.776884]
[1731819134630,28.69629033,234.04,233.95,23.776884]
[1731819135155,28.69629033,234.02,233.92,28.69629033]
[1731819135633,28.69629033,233.98,233.88,28.69629033]
[1731819135833,28.69629033,233.94,233.84,28.69629033]
[1731819136044,28.69629033,233.9,233.8,28.69629033]
[1731819136445,28.69629033,233.9,233.73,8.6872132]
[1731819136653,0.09367462,233.95,233.81,28.69629033]
[1731819136654,28.69629033,233.92,233.81,28.69629033]
[1731819136947,1.71,233.91,233.83,28.69629033]
[1731819137155,1.71,233.91,233.85,28.69629033]
[1731819137533,1.7097,233.95,233.85,28.69629033]
[1731819138150,28.69629033,233.94,233.85,28.69629033]
[1731819138552,1.7099,233.93,233.75,0.34465462]
[1731819138753,30.3549,234.03,233.93,23.902374]
[1731819138965,1.7091,234.04,233.95,28.69629033]
[1731819139833,1.7091,234.04,233.96,23.776884]
[1731819141735,28.69629033,234.03,233.93,28.69629033]
[1731819141959,28.69629033,233.95,233.76,5.4955894]
[1731819142254,12.1419,234.0,233.79,28.69629033]
[1731819142255,28.69629033,233.9,233.79,28.69629033]
[1731819142644,28.69629033,233.9,233.81,28.69629033]
[1731819142853,1.7102,233.89,233.81,28.69629033]
[1731819143755,1.7102,233.89,233.72,32.0897]
[1731819143953,1.7102,233.89,233.8,28.69629033]
[1731819144958,28.69629033,233.86,233.76,28.69629033]
[1731819145752,1.7104,233.85,233.74,28.69629033]
[1731819146137,1.7104,233.85,233.76,28.69629033]
[1731819146338,1.7104,233.85,233.8,28.69629033]
[1731819146538,1.7104,233.85,233.66,13.0194]
[1731819146768,1.7104,233.85,233.77,28.69629033]
[1731819147444,1.7103,233.87,233.78,23.776884]
[1731819148052,1.7103,233.87,233.77,28.69629033]
[1731819149747,28.69629033,233.84,233.73,28.69629033]
[1731819150647,12.2998,233.83,233.73,28.69629033]
[1731819151050,1.7107,233.82,233.74,0.05001259]
[1731819151445,21.7107,233.82,233.74,0.05001259]
[1731819152258,21.7107,233.82,233.73,28.69629033]
[1731819152464,50.40699033,233.82,233.72,23.776884]
[1731819153246,1.7107,233.82,233.73,28.82178033]
[1731819153446,1.7107,233.82,233.74,23.776884]
[1731819153673,30.40699033,233.82,233.74,23.776884]
[1731819154764,30.40699033,233.82,233.72,23.776884]
[1731819155154,28.69629033,233.8,233.72,23.776884]
[1731819155554,1.7109,233.79,233.7,24.12153862]
[1731819156965,1.7109,233.79,233.71,28.69629033]
[1731819157462,1.7109,233.79,233.72,23.902374]
[1731819158863,1.7106,233.83,233.74,23.902374]
[1731819159865,28.69629033,233.82,233.74,23.902374]
[1731819160343,28.69629033,233.82,233.74,23.776884]
[1731819161087,12.2998,233.92,233.74,23.776884]
[1731819161088,13.0731,234.0,233.95,160.5]
[1731819161371,28.69629033,233.96,233.89,23.776884]
[1731819161543,28.69629033,233.93,233.85,0.12549]
[1731819161743,28.69629033,233.91,233.85,0.12549]
[1731819161942,28.69629033,233.93,233.85,0.12549]
[1731819162357,28.69629033,233.93,233.85,23.902374]
[1731819162561,30.40619033,233.93,233.85,23.902374]
[1731819163266,1.7099,233.93,233.85,23.902374]
[1731819163847,28.69629033,233.97,233.88,28.69629033]
[1731819164062,28.69629033,233.95,233.87,23.902374]
[1731819164843,28.69629033,233.93,233.84,28.69629033]
[1731819165061,28.69629033,233.93,233.85,23.776884]
[1731819165863,1.7099,233.92,233.85,23.776884]
[1731819166166,28.69629033,233.93,233.85,23.776884]
[1731819166950,30.40619033,233.93,233.85,23.776884]
[1731819169053,28.69629033,233.87,233.79,0.07192277]
[1731819169567,5.9846,233.93,233.82,28.69629033]
[1731819169568,28.69629033,233.91,233.82,28.69629033]
[1731819170169,34.68089033,233.93,233.82,28.69629033]
[1731819170558,34.68089033,233.93,233.83,23.776884]
[1731819171176,28.69629033,233.92,233.81,23.902374]
[1731819171862,28.69629033,233.9,233.81,23.776884]
[1731819172051,28.69629033,233.87,233.79,0.12549]
[1731819172251,28.69629033,233.89,233.79,0.12549]
[1731819172553,28.69629033,233.84,233.66,31.9249]
[1731819172746,28.69629033,233.84,233.73,28.69629033]
[1731819173260,28.69629033,233.82,233.71,28.69629033]
[1731819174564,1.7107,233.81,233.71,28.69629033]
[1731819174870,1.7107,233.81,233.72,23.776884]
[1731819175371,1.7107,233.81,233.73,28.69629033]
[1731819175673,1.7107,233.81,233.75,28.69629033]
[1731819175871,1.7107,233.81,233.73,28.69629033]
[1731819176207,1.7107,233.81,233.74,23.776884]
[1731819176980,1.7106,233.83,233.74,23.776884]
[1731819178681,1.7107,233.81,233.74,23.776884]
[1731819179552,1.7107,233.81,233.72,23.776884]
[1731819179757,1.7107,233.81,233.71,28.69629033]
[1731819179758,28.69629033,233.8,233.71,28.69629033]
[1731819180557,1.7109,233.79,233.69,28.69629033]
[1731819180756,1.7109,233.79,233.7,23.776884]
[1731819181675,28.69629033,233.78,233.7,23.776884]
[1731819182760,1.711,233.77,233.7,23.776884]
[1731819182976,1.711,233.77,233.68,23.776884]
[1731819183273,28.69629033,233.76,233.65,28.69629033]
[1731819183477,1.711,233.77,233.67,28.69629033]
[1731819184883,1.711,233.77,233.71,28.69629033]
[1731819185176,1.711,233.77,233.7,23.776884]
[1731819185477,1.711,233.77,233.68,23.902374]
[1731819185883,47.8507,233.84,233.71,28.69629033]
[1731819185884,1.7109,233.79,233.71,28.69629033]
[1731819186059,1.7108,233.81,233.74,0.12549]
[1731819186257,28.69629033,233.79,233.7,23.776884]
[1731819186480,28.69629033,233.79,233.71,0.12549]
[1731819186657,30.40709033,233.81,233.72,23.776884]
[1731819186988,1.7108,233.81,233.72,28.69629033]
[1731819187166,1.7108,233.81,233.74,28.69629033]
[1731819188083,1.7106,233.83,233.74,28.69629033]
[1731819188267,28.69629033,233.82,233.72,28.69629033]
[1731819188970,28.69629033,233.74,233.56,4.72357829]
[1731819189177,28.69629033,233.76,233.65,28.69629033]
[1731819190381,1.7112,233.75,233.65,28.69629033]
[1731819190779,1.7112,233.75,233.66,23.902374]
[1731819191478,1.7112,233.75,233.66,23.776884]
[1731819191687,28.69629033,233.74,233.65,28.69629033]
[1731819191885,28.69629033,233.74,233.63,28.69629033]
[1731819192487,1.7113,233.73,233.63,28.69629033]
[1731819192866,1.7113,233.73,233.56,13.43733276]
[1731819192867,1.7113,233.74,233.66,0.09367462]
[1731819193067,1.7113,233.74,233.66,23.902374]
[1731819193368,30.40759033,233.74,233.66,23.902374]
[1731819193569,17.10206,233.73,233.64,23.776884]
[1731819193779,17.10206,233.73,233.65,0.12549]
[1731819193965,1.7114,233.72,233.65,0.12549]
[1731819194171,30.40769033,233.72,233.64,23.776884]
[1731819194367,30.40769033,233.72,233.65,0.12549]
[1731819195780,30.40769033,233.72,233.66,0.07196279]
[1731819196081,30.40769033,233.72,233.65,0.12549]
[1731819197879,1.7114,233.72,233.65,0.12549]
[1731819199182,17.10206,233.73,233.65,0.12549]
[1731819199183,17.10206,233.73,233.67,0.12549]
[1731819199384,1.7114,233.73,233.67,0.12549]
[1731819199881,30.40769033,233.73,233.67,0.12549]
[1731819200788,1.7114,233.73,233.67,0.12549]
[1731819201395,19.65044351,233.72,233.67,0.12549]
[1731819201764,19.65044351,233.72,233.66,23.776884]
[1731819202793,36.75157351,233.74,233.67,0.12549]
[1731819203098,17.93904351,233.72,233.67,0.12549]
[1731819203395,1.7115,233.71,233.67,0.12549]
[1731819204099,12.787,233.84,233.71,24.12153862]
[1731819204269,35.03429651,233.83,233.74,23.902374]
[1731819204473,35.03429651,233.83,233.74,23.776884]
[1731819204474,17.93904351,233.81,233.74,23.776884]
[1731819204673,17.93904351,233.81,233.75,0.12549]
[1731819204892,17.93904351,233.81,233.71,18.03271813]
[1731819205191,17.93904351,233.79,233.72,23.776884]
[1731819205398,17.93904351,233.77,233.71,0.12549]
[1731819205600,17.93904351,233.77,233.68,23.776884]
[1731819205799,17.93904351,233.73,233.66,23.776884]
[1731819206096,17.93904351,233.75,233.63,17.93904351]
[1731819207276,17.93904351,233.73,233.64,0.12549]
[1731819208489,17.93904351,233.73,233.64,23.902374]
[1731819208794,1.7114,233.72,233.64,23.902374]
[1731819210098,17.93904351,233.73,233.64,0.09367462]
[1731819210395,1.7114,233.72,233.62,23.776884]
[1731819210576,19.65054351,233.71,233.63,0.12549]
[1731819212593,17.93904351,233.71,233.64,0.21916462]
[1731819212782,1.7114,233.73,233.65,0.12549]
[1731819216076,17.93904351,233.72,233.65,0.12549]
[1731819217798,19.65044351,233.72,233.65,0.12549]
[1731819220887,17.93904351,233.74,233.65,0.12549]
[1731819222010,1.7107,233.82,233.73,23.902374]
[1731819222185,17.93904351,233.81,233.73,23.902374]
[1731819222385,17.93904351,233.81,233.73,23.776884]
[1731819222706,17.93904351,233.77,233.69,23.776884]
[1731819223906,1.7111,233.76,233.69,23.776884]
[1731819224214,17.93904351,233.75,233.67,23.776884]
[1731819225289,17.93904351,233.75,233.65,23.776884]
[1731819225497,17.93904351,233.73,233.61,17.93904351]
[1731819225685,17.93904351,233.73,233.63,17.93904351]
[1731819225895,19.65024351,233.75,233.65,17.93904351]
[1731819226085,17.93904351,233.73,233.64,0.09367462]
[1731819226303,17.93904351,233.73,233.63,17.93904351]
[1731819226786,1.7114,233.72,233.64,23.99604862]
[1731819227506,1.7114,233.72,233.64,23.902374]
[1731819228011,1.7114,233.72,233.64,0.12549]
[1731819228187,1.7114,233.72,233.64,23.902374]
[1731819231106,1.7114,233.72,233.64,23.776884]
[1731819232393,1.7114,233.72,233.62,23.776884]
[1731819232599,17.93904351,233.65,233.63,0.12549]
[1731819232802,12.1863,233.7,233.62,18.15820813]
[1731819232803,6.51673809,233.67,233.62,18.15820813]
[1731819233115,6.51673809,233.67,233.63,23.902374]
[1731819233293,6.51673809,233.65,233.63,23.902374]
[1731819233900,6.51673809,233.66,233.63,23.902374]
[1731819234100,6.51673809,233.67,233.63,23.902374]
[1731819235208,6.51673809,233.68,233.63,0.12549]
[1731819235410,20.0,233.64,233.51,0.4658036]
[1731819235596,17.93904351,233.52,233.51,0.4658036]
[1731819237506,19.65194351,233.52,233.51,0.4658036]
[1731819238299,19.65194351,233.52,233.39,0.02549097]
[1731819238300,48.38992511,233.52,233.39,0.02549097]
[1731819238502,17.93904351,233.42,233.35,17.93904351]
[1731819238684,17.93904351,233.42,233.33,17.93904351]
[1731819239087,17.93904351,233.42,233.27,0.5658036]
[1731819239293,17.93904351,233.4,233.32,17.93904351]
[1731819240614,17.93904351,233.46,233.37,23.776884]
[1731819240803,17.93904351,233.42,233.34,17.93904351]
[1731819241408,19.65274351,233.42,233.34,17.93904351]
[1731819242209,19.65254351,233.44,233.36,18.06453351]
[1731819242416,19.65254351,233.44,233.37,23.776884]
[1731819242604,17.93904351,233.42,233.37,23.776884]
[1731819242808,17.93904351,233.4,233.37,23.776884]
[1731819243312,17.93904351,233.38,233.27,18.40484711]
[1731819243513,5.9972,233.44,233.27,18.40484711]
[1731819243514,17.93904351,233.36,233.27,18.40484711]
[1731819244211,17.93904351,233.32,233.27,0.4658036]
[1731819244436,17.93904351,233.38,233.27,0.4658036]
[1731819244437,17.93904351,233.28,233.27,0.4658036]
[1731819245423,17.93904351,233.28,233.17,17.93904351]
[1731819245717,17.93904351,233.25,233.17,17.93904351]
[1731819245889,17.93904351,233.25,233.18,24.027864]
[1731819247012,1.7143,233.33,233.24,17.93904351]
[1731819247217,1.7143,233.33,233.27,23.776884]
[1731819247513,12.1863,233.34,233.29,23.776884]
[1731819247716,1.7141,233.35,233.29,23.776884]
[1731819247894,17.93904351,233.34,233.25,18.06453351]
[1731819248094,17.93904351,233.34,233.26,23.776884]
[1731819248825,17.93904351,233.3,233.23,17.93904351]
[1731819249318,17.93904351,233.32,233.23,17.93904351]
[1731819249513,12.1863,233.4,233.14,21.57314517]
[1731819249514,1.7138,233.39,233.29,17.93904351]
[1731819249696,1.7138,233.39,233.33,17.93904351]
[1731819249898,1.7138,233.39,233.21,0.95704833]
[1731819249899,17.93904351,233.34,233.18,8.68860881]
[1731819250097,17.93904351,233.3,233.21,17.93904351]
[1731819250400,17.93904351,233.3,233.14,13.2571]
[1731819250401,17.93904351,233.3,233.22,0.12549]
[1731819250716,1.7145,233.3,233.23,17.93904351]
[1731819250946,12.1863,233.4,233.23,17.93904351]
[1731819250947,1.7142,233.34,233.27,17.93904351]
[1731819251103,17.93904351,233.38,233.29,17.93904351]
[1731819251307,17.93904351,233.35,233.26,17.93904351]
[1731819251603,17.93904351,233.33,233.25,0.12549]
[1731819251799,1.7138,233.39,233.23,23.776884]
[1731819251800,17.93904351,233.31,233.23,23.776884]
[1731819252422,17.93904351,233.33,233.25,23.776884]
[1731819252720,12.2863,233.4,233.04,0.4658036]
[1731819252721,0.1,233.2,233.04,0.4658036]
[1731819252900,17.93904351,233.08,233.04,0.4658036]
[1731819253101,17.93904351,233.15,233.05,17.93904351]
[1731819253425,12.4639,233.16,233.04,0.4658036]
[1731819253593,17.93904351,233.13,233.05,17.93904351]
[1731819253925,12.4639,233.16,233.07,17.93904351]
[1731819254218,12.4639,233.16,233.08,17.93904351]
[1731819254420,17.93904351,233.23,233.12,17.93904351]
[1731819254606,1.7151,233.22,233.12,17.93904351]
[1731819254807,12.4639,233.24,233.15,28.82366993]
[1731819255118,1.7147,233.28,233.19,28.82366993]
[1731819255413,28.82366993,233.25,233.17,28.82366993]
[1731819256007,1.7147,233.28,233.06,0.2]
[1731819256008,28.82366993,233.23,233.16,23.776884]
[1731819256207,28.82366993,233.23,233.13,28.82366993]
[1731819256208,28.82366993,233.23,233.14,23.776884]
[1731819256816,1.7151,233.22,233.14,23.776884]
[1731819257196,1.7151,233.22,233.16,23.776884]
[1731819258315,1.7149,233.24,233.16,23.776884]
[1731819258524,28.82366993,233.21,233.14,23.776884]
[1731819258819,1.7151,233.22,233.14,23.776884]
[1731819258993,1.7151,233.22,233.15,28.94915993]
[1731819259397,28.82366993,233.21,233.14,23.776884]
[1731819261026,1.7152,233.2,233.14,23.776884]
[1731819261313,28.82366993,233.19,233.11,28.82366993]
[1731819261505,28.82366993,233.19,233.12,23.776884]
[1731819262100,28.82366993,233.19,233.1,0.12549]
[1731819262417,28.82366993,233.19,233.09,28.82366993]
[1731819262722,28.82366993,233.13,233.04,0.4658036]
[1731819262914,28.82366993,233.09,233.04,0.4658036]
[1731819263525,28.82366993,233.07,233.04,0.4658036]
[1731819264403,28.82366993,233.11,233.04,0.4658036]
[1731819265026,28.82366993,233.09,233.04,0.4658036]
[1731819265214,28.82366993,233.07,233.04,0.4658036]
[1731819265705,28.82366993,233.05,233.04,0.4658036]
[1731819266105,28.82366993,233.07,233.04,0.4658036]
[1731819266303,28.82366993,233.09,233.04,0.4658036]
[1731819266503,1.7161,233.08,233.04,0.4658036]
[1731819266801,28.82366993,233.07,233.04,0.4658036]
[1731819267301,28.82366993,233.05,233.04,0.4658036]
[1731819268812,30.53996993,233.05,233.04,0.4658036]
[1731819270317,50.53996993,233.05,233.04,0.4658036]
[1731819270700,0.09367462,233.02,232.87,28.82366993]
[1731819270902,28.82366993,232.96,232.87,28.82366993]
[1731819271126,30.54016993,233.02,232.91,28.82366993]
[1731819271833,28.82366993,232.96,232.87,10.7356]
[1731819272219,28.82366993,232.96,232.83,4.2949]
[1731819272220,28.82366993,232.94,232.84,28.82366993]
[1731819272717,6.0079,233.02,232.91,28.82366993]
[1731819273030,30.54016993,233.02,232.93,28.82366993]
[1731819273207,28.82366993,233.0,232.91,28.82366993]
[1731819274121,1.7168,232.99,232.91,28.82366993]
[1731819274306,1.7168,232.99,232.91,28.31037312]
[1731819274808,28.82366993,232.95,232.87,28.82366993]
[1731819275012,1.7168,232.99,232.85,28.82366993]
[1731819275013,28.82366993,232.93,232.85,28.82366993]
[1731819275627,28.82366993,232.95,232.85,28.82366993]
[1731819275924,1.7171,232.94,232.85,28.82366993]
[1731819276112,20.1,233.04,232.85,28.82366993]
[1731819276113,28.82366993,232.97,232.89,28.82366993]
[1731819276708,28.82366993,232.97,232.88,0.25098]
[1731819277110,28.82366993,232.93,232.85,39.56016993]
[1731819277312,28.82366993,232.93,232.83,28.82366993]
[1731819277502,28.82366993,232.91,232.83,28.82366993]
[1731819277909,28.82366993,232.91,232.81,33.11896993]
[1731819278207,30.54106993,232.91,232.81,33.11896993]
[1731819278406,30.54106993,232.91,232.82,0.25098]
[1731819279335,30.54106993,232.91,232.84,0.12549]
[1731819283121,28.82366993,232.93,232.85,52.85153393]
[1731819283524,4.2949,232.94,232.88,0.12549]
[1731819283729,1.7172,232.94,232.88,23.902374]
[1731819284024,28.82366993,232.93,232.88,23.902374]
[1731819284223,28.82366993,232.93,232.87,0.12549]
[1731819284534,28.82366993,232.91,232.86,0.12549]
[1731819288835,18.06469895,232.91,232.86,0.12549]
[1731819289135,0.1,233.01,232.8,0.4658036]
[1731819289315,18.06469895,232.88,232.8,0.4658036]
[1731819289642,18.06469895,232.86,232.8,0.4658036]
[1731819289841,28.17566535,233.12,232.8,0.4658036]
[1731819289842,17.161393,232.93,232.81,18.06469895]
[1731819290046,35.22609195,232.93,232.83,18.06469895]
[1731819290221,18.06469895,232.93,232.86,0.09367462]
[1731819290533,18.06469895,232.93,232.87,0.12549]
[1731819290733,18.06469895,232.95,232.87,0.25098]
[1731819291045,19.78179895,232.95,232.87,0.25098]
[1731819291619,19.78179895,232.95,232.85,18.06469895]
[1731819291620,18.06469895,232.99,232.9,23.776884]
[1731819291916,1.7165,233.03,232.94,24.12153862]
[1731819292525,1.7165,233.03,232.94,23.776884]
[1731819292731,1.7165,233.03,232.87,0.25098]
[1731819293334,1.7165,233.03,232.88,0.09367462]
[1731819293638,18.06469895,232.97,232.89,24.027864]
[1731819293823,18.06469895,232.95,232.89,0.25098]
[1731819294013,18.06469895,232.93,232.86,23.776884]
[1731819294217,18.06469895,232.93,232.83,18.06469895]